bitfinex-derivatives/quotes_SOLF0:USTF0_20240815
["timestamp","ask_amount","ask_price","bid_price","bid_amount"]
[1723710845019,3.5024,142.75,142.74,0.04946902]
[1723710845614,3.55377731,142.76,142.74,0.04946902]
[1723710845823,0.05147731,142.76,142.74,0.04946902]
[1723710846119,3.5024,142.75,142.74,0.04946902]
[1723710847209,8.07377731,142.76,142.74,0.04946902]
[1723710847614,4.57147731,142.76,142.74,0.04946902]
[1723710848323,8.07367731,142.76,142.74,3.55216902]
[1723710848921,8.07367731,142.76,142.74,0.04946902]
[1723710849422,4.57147731,142.76,142.74,0.04946902]
[1723710849719,4.57147731,142.76,142.74,3.55206902]
[1723710850021,4.57147731,142.76,142.74,0.04946902]
[1723710850521,4.57147731,142.76,142.74,27.04946902]
[1723710850522,0.05147731,142.76,142.74,27.04946902]
[1723710850822,0.05147731,142.76,142.75,3.5024]
[1723710851231,0.05147731,142.76,142.74,3.55206902]
[1723710851415,0.05147731,142.76,142.74,0.04946902]
[1723710851716,3.55387731,142.76,142.74,0.04946902]
[1723710852110,0.05147731,142.76,142.74,0.04946902]
[1723710852513,0.05147731,142.76,142.74,3.55206902]
[1723710852819,0.05147731,142.76,142.74,0.04946902]
[1723710854825,0.05147731,142.76,142.75,3.5024]
[1723710855018,0.05147731,142.76,142.74,0.04946902]
[1723710855218,0.05147731,142.76,142.74,3.55206902]
[1723710855426,0.05147731,142.76,142.74,0.04946902]
[1723710855625,4.57147731,142.76,142.74,0.04946902]
[1723710855824,3.5024,142.75,142.74,0.04946902]
[1723710856528,31.57147731,142.76,142.65,27.0]
[1723710856722,31.52,142.76,142.65,27.0]
[1723710856920,31.52,142.76,142.68,3.5041]
[1723710857229,27.0,142.72,142.61,28.3429]
[1723710857416,4.52,142.71,142.65,3.5048]
[1723710857615,4.52,142.7,142.63,27.0]
[1723710857826,0.04627279,142.69,142.67,0.04424128]
[1723710859122,3.55027279,142.69,142.67,0.04424128]
[1723710860416,3.5042,142.68,142.67,0.04424128]
[1723710865521,3.55037279,142.69,142.67,0.04424128]
[1723710866127,0.04627279,142.69,142.59,1.3459]
[1723710866329,28.2559,142.68,142.59,1.3459]
[1723710866730,4.52,142.7,142.6,27.0]
[1723710866731,27.0,142.7,142.6,27.0]
[1723710866934,6.00246344,142.71,142.59,1.3459]
[1723710867235,3.5043,142.68,142.65,3.5049]
[1723710867426,2.5794,142.71,142.61,27.0]
[1723710867627,2.5794,142.71,142.63,27.0]
[1723710867822,2.5794,142.71,142.66,3.5045]
[1723710867823,3.504,142.69,142.66,3.5045]
[1723710868830,0.05284343,142.68,142.66,3.5045]
[1723710869030,0.05284343,142.68,142.66,3.55697843]
[1723710870137,0.05284343,142.68,142.67,3.5044]
[1723710870334,0.05284343,142.68,142.66,0.05247843]
[1723710870728,0.05284343,142.68,142.67,3.5044]
[1723710873442,0.05284343,142.68,142.66,3.55697843]
[1723710873637,0.05284343,142.68,142.66,0.05247843]
[1723710874044,3.55714343,142.68,142.66,0.05247843]
[1723710875744,3.5044,142.67,142.66,0.05247843]
[1723710877853,3.5057,142.62,142.57,27.0]
[1723710878041,27.0,142.66,142.57,27.0]
[1723710878240,4.56,142.65,142.6,3.506]
[1723710878443,3.5054,142.64,142.6,3.506]
[1723710878939,4.56,142.65,142.6,3.506]
[1723710879145,0.05180986,142.63,142.61,0.05061112]
[1723710880440,3.5056,142.62,142.61,0.05061112]
[1723710880636,27.0,142.62,142.55,1.3396]
[1723710880833,27.0,142.6,142.52,27.0]
[1723710881043,3.507,142.57,142.53,3.5077]
[1723710881248,4.56,142.57,142.52,27.0]
[1723710881636,3.5072,142.56,142.52,27.0]
[1723710881838,0.0485494,142.56,142.53,0.05347518]
[1723710882645,3.5076,142.54,142.53,0.05347518]
[1723710882848,1.3165494,142.56,142.53,0.05347518]
[1723710883149,3.5076,142.54,142.53,0.05347518]
[1723710883742,3.5074,142.55,142.53,0.05347518]
[1723710884248,1.3165494,142.56,142.53,0.05347518]
[1723710884439,4.8238494,142.56,142.53,0.05347518]
[1723710884641,3.5558494,142.56,142.53,0.05347518]
[1723710884841,0.0485494,142.56,142.53,0.05347518]
[1723710885147,4.6285494,142.56,142.53,0.05347518]
[1723710885442,8.1357494,142.56,142.53,0.05347518]
[1723710885843,4.6285494,142.56,142.53,0.05347518]
[1723710886644,8.1357494,142.56,142.53,0.05347518]
[1723710887145,4.6285494,142.56,142.53,0.05347518]
[1723710888237,4.6285494,142.56,142.53,3.56127518]
[1723710888641,4.6285494,142.56,142.53,0.05347518]
[1723710888849,8.1357494,142.56,142.53,0.05347518]
[1723710890048,4.6285494,142.56,142.53,0.05347518]
[1723710890443,31.6285494,142.56,142.53,0.05347518]
[1723710890755,3.5076,142.54,142.53,0.05347518]
[1723710890945,31.6285494,142.56,142.53,0.05347518]
[1723710891142,3.5076,142.55,142.53,0.05347518]
[1723710891947,3.5076,142.54,142.53,0.05347518]
[1723710892150,31.6285494,142.56,142.53,0.05347518]
[1723710892453,3.5075,142.55,142.53,0.05347518]
[1723710892851,4.6285494,142.56,142.53,0.05347518]
[1723710893560,4.6285494,142.56,142.53,3.56117518]
[1723710894150,8.1358494,142.56,142.53,3.56117518]
[1723710894351,4.6285494,142.56,142.53,0.05347518]
[1723710895147,3.5075,142.55,142.53,0.05347518]
[1723710895348,4.6285494,142.56,142.53,0.05347518]
[1723710895544,3.5076,142.54,142.53,0.05347518]
[1723710895853,6.96161504,142.54,142.53,0.05347518]
[1723710898246,3.5075,142.55,142.53,0.05347518]
[1723710898950,3.5076,142.54,142.53,0.05347518]
[1723710903058,3.5075,142.55,142.53,0.05347518]
[1723710903259,4.6,142.55,142.53,0.05347518]
[1723710903857,8.1074,142.55,142.53,0.05347518]
[1723710904057,0.0485494,142.56,142.53,0.05347518]
[1723710904259,3.5556494,142.56,142.53,3.56107518]
[1723710904659,3.5556494,142.56,142.53,0.05347518]
[1723710905161,3.5556494,142.56,142.53,3.56117518]
[1723710905553,0.0485494,142.56,142.53,27.05347518]
[1723710905758,4.6,142.63,142.55,27.0]
[1723710905957,4.6,142.63,142.59,27.0]
[1723710906162,4.6,142.63,142.61,27.0]
[1723710906363,70.94958551,142.66,142.59,27.0]
[1723710906867,3.5049,142.65,142.58,1.271]
[1723710907366,0.05304197,142.64,142.61,0.05134469]
[1723710908862,0.05304197,142.64,142.62,3.5056]
[1723710909968,0.05304197,142.64,142.61,3.55714469]
[1723710910359,0.05304197,142.64,142.61,0.05134469]
[1723710911166,0.05304197,142.64,142.61,3.55724469]
[1723710911376,3.5056,142.62,142.61,0.05134469]
[1723710911574,27.05304197,142.64,142.61,0.05134469]
[1723710911781,0.05304197,142.64,142.61,0.05134469]
[1723710911975,3.5056,142.63,142.61,0.05134469]
[1723710913778,3.5056,142.62,142.61,0.05134469]
[1723710914872,4.6,142.62,142.61,0.05134469]
[1723710916082,4.6,142.62,142.61,3.55724469]
[1723710916478,4.6,142.62,142.61,0.05134469]
[1723710919982,0.05304197,142.64,142.61,0.05134469]
[1723710920586,0.05304197,142.64,142.63,3.5054]
[1723710926588,0.05304197,142.64,142.61,0.05134469]
[1723710927187,0.05304197,142.64,142.62,3.5055]
[1723710927382,0.05304197,142.64,142.61,0.05134469]
[1723710928194,0.05304197,142.64,142.63,3.5054]
[1723710930687,7.0963,142.7,142.63,27.0]
[1723710930688,4.62,142.7,142.63,27.0]
[1723710930889,4.62,142.7,142.65,27.0]
[1723710931096,3.44913412,142.72,142.67,3.5042]
[1723710931097,3.5036,142.71,142.67,3.5042]
[1723710931485,4.6,142.73,142.67,3.5042]
[1723710931691,3.5037,142.71,142.67,3.5042]
[1723710931884,0.0455989,142.71,142.69,0.0474201]
[1723710932891,3.5491989,142.71,142.69,0.0474201]
[1723710934893,0.0455989,142.71,142.69,0.0474201]
[1723710935297,0.0455989,142.71,142.7,3.5037]
[1723710936398,0.0455989,142.71,142.69,3.5512201]
[1723710937395,3.5490989,142.71,142.69,3.5512201]
[1723710937790,27.0455989,142.71,142.69,0.0474201]
[1723710938097,3.5037,142.7,142.69,0.0474201]
[1723710941498,30.5491989,142.71,142.69,0.0474201]
[1723710941800,3.5491989,142.71,142.69,0.0474201]
[1723710942000,0.0455989,142.71,142.69,3.5513201]
[1723710943395,3.5490989,142.71,142.69,0.0474201]
[1723710943698,27.0455989,142.71,142.69,0.0474201]
[1723710943892,3.5037,142.7,142.69,0.0474201]
[1723710947397,27.0455989,142.71,142.69,0.0474201]
[1723710947398,3.5491989,142.71,142.69,0.0474201]
[1723710949606,3.5037,142.7,142.69,0.0474201]
[1723710950401,3.5043,142.68,142.65,3.5048]
[1723710950700,27.0,142.69,142.65,3.5048]
[1723710951303,3.5043,142.68,142.65,3.5048]
[1723710951502,3.5043,142.68,142.65,3.55341122]
[1723710951707,3.5513455,142.68,142.65,3.55341122]
[1723710952697,0.0470455,142.68,142.66,3.5047]
[1723710952897,0.0470455,142.68,142.65,0.04861122]
[1723710953899,0.0470455,142.68,142.66,3.5045]
[1723710954800,3.5512455,142.68,142.65,3.55341122]
[1723710955003,0.0470455,142.68,142.65,0.04861122]
[1723710955400,0.0470455,142.68,142.66,3.5046]
[1723710956904,0.0470455,142.68,142.65,0.04861122]
[1723710957408,3.5047,142.66,142.65,0.04861122]
[1723710960004,4.6270455,142.68,142.65,0.04861122]
[1723710960403,4.6270455,142.68,142.67,3.5044]
[1723710960605,4.6270455,142.68,142.65,0.04861122]
[1723710960806,8.1312455,142.68,142.65,3.55341122]
[1723710961607,4.6270455,142.68,142.66,3.5046]
[1723710962008,0.0470455,142.68,142.65,0.04861122]
[1723710962207,0.0470455,142.68,142.65,3.55341122]
[1723710962408,0.0470455,142.68,142.65,0.04861122]
[1723710962915,0.0470455,142.68,142.65,27.04861122]
[1723710963110,0.0470455,142.68,142.67,3.5044]
[1723710964517,0.0470455,142.68,142.67,30.5044]
[1723710967214,8.0828,142.74,142.7,3.5035]
[1723710967613,4.58,142.74,142.67,27.0]
[1723710968014,3.5031,142.73,142.69,3.5037]
[1723710968215,3.5031,142.73,142.67,27.0]
[1723710968414,0.0477427,142.72,142.7,0.04947974]
[1723710969017,3.5510427,142.72,142.7,0.04947974]
[1723710971015,3.5034,142.71,142.7,0.04947974]
[1723710973519,8.0834,142.71,142.7,0.04947974]
[1723710980022,31.58,142.71,142.62,2.6891]
[1723710980226,27.0,142.69,142.64,3.5051]
[1723710980425,3.5045,142.67,142.62,2.6891]
[1723710980719,3.58640028,142.67,142.62,3.5055]
[1723710981019,3.55625162,142.66,142.63,0.04802154]
[1723710981223,3.55625162,142.66,142.63,3.55342154]
[1723710981719,0.05145162,142.66,142.63,0.04802154]
[1723710982115,3.5052,142.64,142.63,0.04802154]
[1723710984227,3.5059,142.61,142.58,3.5065]
[1723710984927,4.52,142.62,142.56,27.0]
[1723710985329,0.04987182,142.6,142.59,3.5062]
[1723710988527,8.0253,142.64,142.61,3.5058]
[1723710989134,4.52,142.64,142.62,3.5056]
[1723710989828,4.56603689,142.64,142.62,3.5546187]
[1723710990035,0.04603689,142.64,142.63,3.5054]
[1723710995528,4.52,142.68,142.65,3.5047]
[1723710995736,4.52,142.71,142.65,27.0]
[1723710996633,3.504,142.69,142.66,3.5045]
[1723710996831,3.55391792,142.69,142.67,0.05325233]
[1723711000538,0.04991792,142.69,142.67,0.05325233]
[1723711001139,3.5042,142.68,142.67,0.05325233]
[1723711001738,0.04991792,142.69,142.67,0.05325233]
[1723711002436,3.5042,142.68,142.67,0.05325233]
[1723711005638,27.0,142.68,142.59,28.2486]
[1723711005940,27.0,142.65,142.57,27.0]
[1723711006145,3.5058,142.62,142.59,3.5062]
[1723711006547,3.48650543,142.64,142.55,30.8523]
[1723711006748,3.5058,142.62,142.58,3.5065]
[1723711006947,0.04658881,142.61,142.58,3.55515025]
[1723711007951,3.5063,142.6,142.58,0.04865025]
[1723711009437,0.04658881,142.61,142.58,0.04865025]
[1723711009845,0.04658881,142.61,142.58,3.55505025]
[1723711010150,0.04658881,142.61,142.58,0.04865025]
[1723711011845,0.04658881,142.61,142.6,3.5061]
[1723711017554,0.04658881,142.61,142.59,3.5063]
[1723711017956,0.04658881,142.61,142.58,0.04865025]
[1723711018151,0.04658881,142.61,142.59,3.5061]
[1723711018457,0.04658881,142.61,142.58,0.04865025]
[1723711018652,0.04658881,142.61,142.59,3.5062]
[1723711019056,0.04658881,142.61,142.58,0.04865025]
[1723711019257,0.04658881,142.61,142.59,3.5064]
[1723711019452,0.04658881,142.61,142.58,0.04865025]
[1723711020361,4.56658881,142.61,142.58,0.04865025]
[1723711020854,3.5064,142.59,142.58,0.04865025]
[1723711021061,27.0,142.6,142.51,27.0]
[1723711021264,34.015,142.6,142.5,27.0]
[1723711021766,3.5071,142.56,142.5,27.0]
[1723711022063,4.52,142.57,142.47,2.5617]
[1723711022260,0.05181219,142.54,142.52,0.04989106]
[1723711022765,3.55961219,142.54,142.52,0.04989106]
[1723711022966,0.05181219,142.54,142.52,0.04989106]
[1723711023567,4.57181219,142.54,142.52,0.04989106]
[1723711024063,0.05181219,142.54,142.53,3.5079]
[1723711026859,0.05181219,142.54,142.52,3.55789106]
[1723711027059,0.05181219,142.54,142.52,0.04989106]
[1723711027858,0.05181219,142.54,142.52,3.55789106]
[1723711030073,0.05181219,142.54,142.53,3.5079]
[1723711031376,4.52,142.6,142.52,27.04989106]
[1723711031571,4.52,142.6,142.54,27.0]
[1723711032875,0.04524781,142.58,142.56,0.05039389]
[1723711033171,0.04524781,142.58,142.57,30.5068]
[1723711033365,4.82701857,142.66,142.57,27.0]
[1723711033573,3.5049,142.65,142.61,3.5058]
[1723711033874,3.5049,142.65,142.59,27.0]
[1723711034568,4.52,142.66,142.59,27.0]
[1723711034877,0.05250353,142.63,142.62,3.5056]
[1723711040678,4.52,142.69,142.66,3.5045]
[1723711041472,4.7375,142.72,142.68,3.5042]
[1723711041670,9.2575,142.72,142.68,3.5042]
[1723711041867,0.05215814,142.71,142.69,0.0496446]
[1723711042879,3.55565814,142.71,142.69,0.0496446]
[1723711043676,0.05215814,142.71,142.69,0.0496446]
[1723711044077,3.55575814,142.71,142.69,0.0496446]
[1723711044275,0.05215814,142.71,142.69,0.0496446]
[1723711044972,0.05215814,142.71,142.7,3.5037]
[1723711045579,0.05215814,142.71,142.69,0.0496446]
[1723711045978,0.05215814,142.71,142.7,3.5037]
[1723711050077,8.022,142.77,142.73,3.5028]
[1723711050487,4.52,142.77,142.69,27.0]
[1723711050686,3.5022,142.76,142.72,3.5031]
[1723711051280,0.05283147,142.75,142.73,0.04818157]
[1723711052293,0.05283147,142.75,142.73,3.55108157]
[1723711052596,0.05283147,142.75,142.73,0.04818157]
[1723711052890,3.55533147,142.75,142.73,0.04818157]
[1723711055091,0.05283147,142.75,142.73,0.04818157]
[1723711055491,0.05283147,142.75,142.73,3.55108157]
[1723711056986,0.05283147,142.75,142.74,3.5027]
[1723711057381,0.05283147,142.75,142.73,0.04818157]
[1723711058187,0.05283147,142.75,142.73,3.55098157]
[1723711060496,3.55533147,142.75,142.73,3.55098157]
[1723711061801,0.05283147,142.75,142.73,3.55098157]
[1723711062401,3.55543147,142.75,142.73,0.04818157]
[1723711063601,3.5027,142.74,142.73,0.04818157]
[1723711064200,0.05283147,142.75,142.63,1.3006]
[1723711064201,27.05283147,142.75,142.63,1.3006]
[1723711064497,27.0,142.71,142.63,1.3006]
[1723711064693,3.5038,142.7,142.63,1.3006]
[1723711065290,0.05369956,142.68,142.66,3.5045]
[1723711065700,0.05369956,142.68,142.65,0.0504597]
[1723711068097,0.05369956,142.68,142.65,3.5552597]
[1723711070707,3.55789956,142.68,142.65,3.5552597]
[1723711071214,3.55789956,142.68,142.65,0.0504597]
[1723711072110,0.05369956,142.68,142.65,0.0504597]
[1723711072508,4.52,142.67,142.65,0.0504597]
[1723711072813,8.0245,142.67,142.65,0.0504597]
[1723711073010,4.52,142.67,142.65,0.0504597]
[1723711073211,3.5047,142.66,142.65,0.0504597]
[1723711075115,8.0246,142.67,142.65,0.0504597]
[1723711075611,4.52,142.67,142.65,0.0504597]
[1723711075809,3.5047,142.66,142.65,0.0504597]
[1723711084017,10.77,142.66,142.62,3.2559597]
[1723711084620,10.77,142.66,142.6,10.77]
[1723711084621,10.77,142.66,142.61,3.5058]
[1723711084823,10.77,142.65,142.61,3.5058]
[1723711085019,10.77,142.62,142.55,10.77]
[1723711085323,15.29,142.62,142.55,10.77]
[1723711085523,18.7958,142.62,142.57,0.04892813]
[1723711085718,4.52,142.62,142.57,10.81892813]
[1723711085918,0.05073829,142.6,142.57,10.81892813]
[1723711086114,0.05073829,142.6,142.59,3.5062]
[1723711088228,4.52,142.66,142.64,3.5049]
[1723711088424,4.52,142.66,142.62,10.77]
[1723711088629,8.0247,142.66,142.59,1.2633]
[1723711088836,8.0247,142.66,142.61,10.77]
[1723711089133,4.52,142.66,142.63,3.5054]
[1723711089429,0.05119848,142.65,142.63,3.5054]
[1723711090723,0.05119848,142.65,142.64,3.5051]
[1723711091727,0.05119848,142.65,142.62,26.96778689]
[1723711092232,0.05119848,142.65,142.64,3.5051]
[1723711094128,0.05119848,142.65,142.63,3.5053]
[1723711094529,0.05119848,142.65,142.62,3.55338689]
[1723711094932,0.05119848,142.65,142.62,0.04778689]
[1723711095133,0.05119848,142.65,142.62,3.55328689]
[1723711095328,0.05119848,142.65,142.62,0.04778689]
[1723711097232,0.05119848,142.65,142.63,3.5052]
[1723711097531,0.05119848,142.65,142.62,0.04778689]
[1723711097734,0.05119848,142.65,142.64,3.5051]
[1723711107246,0.05119848,142.65,142.63,3.5053]
[1723711107442,0.05119848,142.65,142.62,0.04778689]
[1723711108249,0.05119848,142.65,142.64,3.5051]
[1723711116347,0.05119848,142.65,142.63,3.5054]
[1723711116546,0.05119848,142.65,142.62,10.81778689]
[1723711117753,0.05119848,142.65,142.64,3.5051]
[1723711119455,0.05119848,142.65,142.64,14.2751]
[1723711119951,0.05119848,142.65,142.64,3.5051]
[1723711121447,0.05119848,142.65,142.63,3.5053]
[1723711122359,0.05119848,142.65,142.64,3.5051]
[1723711134772,0.05119848,142.65,142.62,10.81778689]
[1723711135869,0.05119848,142.65,142.64,3.5051]
[1723711140769,0.05119848,142.65,142.63,3.5053]
[1723711140972,0.05119848,142.65,142.62,0.04778689]
[1723711141171,10.77,142.63,142.62,0.04778689]
[1723711141470,3.506,142.61,142.57,3.5068]
[1723711141672,14.276,142.61,142.57,3.5068]
[1723711142578,0.04472412,142.6,142.58,0.04663148]
[1723711143075,4.56472412,142.6,142.58,0.04663148]
[1723711144565,4.56472412,142.6,142.58,3.55313148]
[1723711144772,0.04472412,142.6,142.59,10.77]
[1723711145274,0.04472412,142.6,142.59,14.2764]
[1723711146573,9.2928,142.67,142.59,10.77]
[1723711146876,10.77,142.66,142.59,10.77]
[1723711147083,3.5051,142.65,142.61,3.5058]
[1723711147270,3.5051,142.65,142.59,10.77]
[1723711147769,0.04723573,142.63,142.61,3.55613507]
[1723711147973,0.04723573,142.63,142.62,10.77]
[1723711148776,0.04723573,142.63,142.62,14.2756]
[1723711152375,0.04723573,142.63,142.62,3.5056]
[1723711152978,0.04723573,142.63,142.62,14.2756]
[1723711157189,18.7938,142.7,142.66,3.5046]
[1723711157392,15.29,142.7,142.64,10.77]
[1723711157785,10.77,142.69,142.62,10.77]
[1723711157982,10.77,142.68,142.61,15.29]
[1723711158188,10.77,142.68,142.59,4.52]
[1723711158383,3.55798898,142.66,142.63,0.05313319]
[1723711159689,3.55798898,142.66,142.63,3.55853319]
[1723711160096,0.05318898,142.66,142.63,3.55853319]
[1723711160290,0.05318898,142.66,142.64,3.5051]
[1723711160594,0.05318898,142.66,142.63,0.05313319]
[1723711160595,0.05318898,142.66,142.65,10.77]
[1723711160793,0.05318898,142.66,142.65,14.2749]
[1723711161181,0.05318898,142.66,142.63,0.05313319]
[1723711162490,0.05318898,142.66,142.63,3.55833319]
[1723711163892,0.05318898,142.66,142.64,3.5051]
[1723711166692,0.05318898,142.66,142.65,3.5049]
[1723711173298,0.05318898,142.66,142.63,10.82313319]
[1723711173497,0.05318898,142.66,142.63,0.05313319]
[1723711173691,0.05318898,142.66,142.63,3.55843319]
[1723711174193,0.05318898,142.66,142.64,3.5051]
[1723711174388,0.05318898,142.66,142.63,0.05313319]
[1723711174598,3.55788898,142.66,142.63,3.55843319]
[1723711174797,3.55788898,142.66,142.63,0.05313319]
[1723711175994,3.5049,142.65,142.63,0.05313319]
[1723711176201,10.82318898,142.66,142.63,0.05313319]
[1723711176392,10.77,142.65,142.41,263.18249443]
[1723711176593,10.77,142.62,142.55,10.77]
[1723711176798,3.52450203,142.61,142.55,10.77]
[1723711176994,15.27,142.6,142.53,44.53257235]
[1723711177196,8.05289434,142.6,142.54,3.5075]
[1723711177401,1.3232,142.63,142.56,10.77]
[1723711177591,0.04935368,142.58,142.56,10.82281425]
[1723711177790,0.04935368,142.58,142.56,0.05281425]
[1723711178194,10.77,142.6,142.56,0.05281425]
[1723711178402,0.05205971,142.58,142.56,0.05281425]
[1723711182801,0.05205971,142.58,142.57,14.2769]
[1723711186298,0.05205971,142.58,142.57,3.5069]
[1723711186706,0.05205971,142.58,142.57,14.2769]
[1723711188604,0.05205971,142.58,142.56,3.55981425]
[1723711189199,0.05205971,142.58,142.56,0.05281425]
[1723711189903,0.05205971,142.58,142.56,3.55981425]
[1723711190507,0.05205971,142.58,142.56,0.05281425]
[1723711192005,3.55875971,142.58,142.56,0.05281425]
[1723711192211,0.05205971,142.58,142.56,0.05281425]
[1723711197105,3.55865971,142.58,142.56,0.05281425]
[1723711200617,0.05205971,142.58,142.56,0.05281425]
[1723711201612,3.55865971,142.58,142.56,0.05281425]
[1723711201916,0.05205971,142.58,142.56,0.05281425]
[1723711202115,3.5068,142.57,142.56,0.05281425]
[1723711204013,8.07875971,142.58,142.56,0.05281425]
[1723711204222,4.57205971,142.58,142.56,0.05281425]
[1723711204516,3.5068,142.57,142.56,0.05281425]
[1723711206414,14.32875971,142.58,142.56,0.05281425]
[1723711206616,10.82205971,142.58,142.56,0.05281425]
[1723711206817,14.2768,142.57,142.56,0.05281425]
[1723711208411,4.52,142.57,142.56,3.55991425]
[1723711208716,0.05205971,142.58,142.56,0.05281425]
[1723711208919,0.05205971,142.58,142.57,3.5068]
[1723711209419,3.5068,142.57,142.56,0.05281425]
[1723711209722,14.2768,142.57,142.56,0.05281425]
[1723711213619,18.84885971,142.58,142.56,0.05281425]
[1723711214623,10.77,142.57,142.56,0.05281425]
[1723711215224,14.2768,142.57,142.56,0.05281425]
[1723711216723,15.34205971,142.58,142.56,3.55981425]
[1723711217228,15.34205971,142.58,142.56,0.05281425]
[1723711217619,4.57205971,142.58,142.56,0.05281425]
[1723711217924,0.05205971,142.58,142.56,0.05281425]
[1723711218126,0.05205971,142.58,142.57,3.5068]
[1723711219726,0.05205971,142.58,142.56,3.55971425]
[1723711220020,10.82205971,142.58,142.56,3.55971425]
[1723711220228,10.82205971,142.58,142.56,0.05281425]
[1723711220415,14.32875971,142.58,142.56,0.05281425]
[1723711221924,3.5068,142.57,142.56,0.05281425]
[1723711222121,14.2768,142.57,142.56,0.05281425]
[1723711222619,3.5068,142.57,142.56,0.05281425]
[1723711224428,10.82205971,142.58,142.56,0.05281425]
[1723711225821,14.2768,142.57,142.56,0.05281425]
[1723711226325,14.2777,142.54,142.51,3.5083]
[1723711226528,18.7777,142.54,142.48,1.3345]
[1723711226731,4.5,142.54,142.48,12.1045]
[1723711226924,4.5,142.54,142.52,3.508]
[1723711227440,4.55102695,142.54,142.53,3.5078]
[1723711227630,0.05102695,142.54,142.53,3.5078]
[1723711236839,0.05102695,142.54,142.52,3.56199248]
[1723711237040,0.05102695,142.54,142.52,0.05399248]
[1723711238437,0.05102695,142.54,142.53,3.5078]
[1723711240033,0.05102695,142.54,142.52,3.56199248]
[1723711242330,3.55862695,142.54,142.52,0.05399248]
[1723711242535,14.32862695,142.54,142.52,0.05399248]
[1723711242843,3.5078,142.53,142.52,0.05399248]
[1723711243335,22.41007708,142.54,142.52,0.05399248]
[1723711243542,18.84872695,142.54,142.52,0.05399248]
[1723711243843,15.34102695,142.54,142.52,0.05399248]
[1723711244041,18.90428016,142.54,142.52,0.05399248]
[1723711244747,3.5078,142.53,142.52,0.05399248]
[1723711245249,14.2778,142.53,142.52,0.05399248]
[1723711245431,53.85,142.53,142.42,13.403]
[1723711245631,10.77,142.49,142.42,13.403]
[1723711245831,3.5091,142.48,142.44,3.51]
[1723711246738,10.82130908,142.47,142.45,0.04796647]
[1723711247039,14.33060908,142.47,142.45,0.04796647]
[1723711247239,10.77,142.46,142.45,0.04796647]
[1723711247840,14.2795,142.46,142.45,0.04796647]
[1723711248038,10.82130908,142.47,142.45,0.04796647]
[1723711248240,0.05130908,142.47,142.45,0.04796647]
[1723711248940,0.05130908,142.47,142.45,3.55766647]
[1723711253950,0.05130908,142.47,142.46,3.5095]
[1723711255451,4.52,142.51,142.49,3.5087]
[1723711255748,4.52,142.52,142.49,3.5087]
[1723711255938,8.0282,142.52,142.49,3.5087]
[1723711256652,8.07653067,142.52,142.49,3.55758963]
[1723711257252,4.56833067,142.52,142.5,3.5085]
[1723711257551,4.56833067,142.52,142.49,0.04888963]
[1723711257748,0.04833067,142.52,142.51,3.5083]
[1723711258650,3.5066,142.58,142.54,3.5075]
[1723711259051,8.0264,142.59,142.51,26.95]
[1723711260053,0.04644198,142.56,142.54,0.04542193]
[1723711260348,0.04644198,142.56,142.54,3.55282193]
[1723711261658,0.04644198,142.56,142.54,0.04542193]
[1723711262351,0.04644198,142.56,142.54,3.55292193]
[1723711263550,0.04644198,142.56,142.54,0.04542193]
[1723711264051,4.5,142.55,142.54,0.04542193]
[1723711264348,8.0073,142.55,142.54,0.04542193]
[1723711265957,0.04644198,142.56,142.54,0.04542193]
[1723711266356,0.04644198,142.56,142.54,3.55292193]
[1723711266654,0.04644198,142.56,142.54,0.04542193]
[1723711267756,3.55364198,142.56,142.54,0.04542193]
[1723711268254,3.55364198,142.56,142.54,3.55292193]
[1723711268255,0.04644198,142.56,142.54,3.55292193]
[1723711269750,0.04644198,142.56,142.55,3.5073]
[1723711276656,26.95,142.64,142.54,30.58242378]
[1723711276856,31.45,142.64,142.54,30.53700185]
[1723711277162,3.5059,142.61,142.57,3.5066]
[1723711277358,3.5059,142.61,142.54,30.53700185]
[1723711277756,0.05357674,142.59,142.58,3.5064]
[1723711277964,3.5057,142.62,142.58,3.5064]
[1723711278266,0.04546083,142.6,142.59,3.5063]
[1723711279366,66.73674029,142.67,142.62,3.5056]
[1723711279559,3.5048,142.66,142.62,3.5056]
[1723711279858,66.73674029,142.67,142.58,28.2632]
[1723711280060,3.5049,142.65,142.61,3.5057]
[1723711280853,0.03211408,142.64,142.61,3.5057]